[Event "NJSK 2026 Jeugd B"]
[Site "Helmond, Netherlands"]
[Date "2026.04.26"]
[Round "2.8"]
[White "Okita, Shinsaku"]
[Black "Zecha, Oscar"]
[Result "1/2-1/2"]
[TimeControl "90min/40moves + 30min + 30sec/move"]
[WhiteTitle "-"]
[BlackTitle "-"]
[WhiteFideId "1094823"]
[BlackFideId "1073826"]
[WhiteElo "1899"]
[BlackElo "2120"]

1. d4 {[%clk 01:30:59]} Nf6 {[%clk 01:30:56]} {[%emt 00:00:03]} 2. Nf3 {[%emt
00:00:09]} d5 {[%clk 01:31:20]} {[%emt 00:00:02]} 3. c3 {[%clk 01:31:50]}
{[%emt 00:00:04]} c5 {[%clk 01:31:03]} {[%emt 00:00:46]} 4. dxc5 {[%clk
01:32:17]} {[%emt 00:00:04]} e6 {[%clk 01:25:06]} {[%emt 00:06:27]} 5. b4
{[%clk 01:32:20]} {[%emt 00:00:27]} a5 {[%clk 01:25:08]} {[%emt 00:00:28]} 6.
e3 {[%clk 01:32:34]} {[%emt 00:00:15]} axb4 {[%clk 01:20:20]} {[%emt 00:05:19]}
7. cxb4 {[%clk 01:32:56]} {[%emt 00:00:08]} b6 {[%clk 01:20:46]} {[%emt
00:00:04]} 8. Bb5+ {[%clk 01:33:18]} {[%emt 00:00:08]} Bd7 {[%clk 01:20:47]}
{[%emt 00:00:29]} 9. Bxd7+ {[%clk 01:33:43]} {[%emt 00:00:05]} Qxd7 {[%clk
01:14:44]} {[%emt 00:06:33]} 10. a4 {[%clk 01:29:14]} {[%emt 00:05:00]} Na6
{[%clk 01:04:24]} {[%emt 00:10:49]} 11. Bd2 {[%clk 01:18:16]} {[%emt 00:11:28]}
bxc5 {[%clk 01:04:24]} {[%emt 00:00:30]} 12. b5 {[%clk 01:16:28]} {[%emt
00:02:18]} Nc7 {[%clk 00:59:49]} {[%emt 00:05:04]} 13. b6 {[%clk 01:05:55]}
{[%emt 00:11:04]} Na6 {[%clk 00:59:35]} {[%emt 00:00:44]} 14. Qb3 {[%clk
00:59:13]} {[%emt 00:07:10]} c4 {[%clk 00:57:07]} {[%emt 00:02:59]} 15. b7
{[%clk 00:51:24]} {[%emt 00:08:20]} Rb8 {[%clk 00:56:07]} {[%emt 00:01:30]} 16.
Qb5 {[%clk 00:46:02]} {[%emt 00:05:52]} Nc5 {[%clk 00:55:37]} {[%emt 00:01:00]}
17. Ne5 {[%clk 00:43:05]} {[%emt 00:03:27]} Qxb5 {[%clk 00:55:22]} {[%emt
00:00:45]} 18. axb5 {[%clk 00:43:20]} {[%emt 00:00:15]} Nxb7 {[%clk 00:53:47]}
{[%emt 00:02:03]} 19. Nc6 {[%clk 00:42:48]} {[%emt 00:01:04]} Rc8 {[%clk
00:53:52]} {[%emt 00:00:24]} 20. O-O {[%clk 00:39:18]} {[%emt 00:04:00]} Bc5
{[%clk 00:52:17]} {[%emt 00:02:06]} 21. Nc3 {[%clk 00:36:24]} {[%emt 00:03:25]}
Nd8 {[%clk 00:35:38]} {[%emt 00:17:08]} 22. Nxd8 {[%emt 00:03:16]} Rxd8 {[%clk
00:35:11]} {[%emt 00:00:55]} 23. Na4 {[%clk 00:31:21]} {[%emt 00:02:49]} Bd6
{[%clk 00:34:52]} {[%emt 00:00:45]} 24. Ba5 {[%clk 00:28:04]} {[%emt 00:03:51]}
Ra8 {[%clk 00:32:30]} {[%emt 00:02:52]} 25. Bc3 {[%clk 00:22:43]} {[%emt
00:05:52]} O-O {[%clk 00:31:04]} {[%emt 00:01:54]} 26. Rfb1 {[%clk 00:18:44]}
{[%emt 00:04:30]} Rfb8 {[%clk 00:28:17]} {[%emt 00:03:17]} 27. b6 {[%clk
00:16:40]} {[%emt 00:02:35]} Ne4 {[%clk 00:25:09]} {[%emt 00:03:37]} 28. Bb4
{[%clk 00:11:03]} {[%emt 00:06:07]} Be5 {[%clk 00:25:10]} {[%emt 00:00:27]} 29.
Ra3 {[%clk 00:09:47]} {[%emt 00:01:49]} c3 {[%clk 00:19:09]} {[%emt 00:06:30]}
30. Rc1 {[%clk 00:08:43]} {[%emt 00:01:34]} d4 {[%clk 00:19:17]} {[%emt
00:00:22]} 31. f3 {[%clk 00:08:11]} {[%emt 00:01:02]} Nd2 {[%clk 00:17:30]}
{[%emt 00:02:17]} 32. f4 {[%clk 00:06:31]} {[%emt 00:02:11]} Bf6 {[%clk
00:09:54]} {[%emt 00:08:05]} 33. Bd6 {[%clk 00:06:11]} {[%emt 00:00:50]} Nc4
{[%clk 00:09:16]} {[%emt 00:01:08]} 34. Bxb8 {[%clk 00:05:46]} {[%emt
00:00:55]} Nxa3 {[%clk 00:03:51]} {[%emt 00:05:55]} 35. Bd6 {[%clk 00:05:29]}
{[%emt 00:00:47]} d3 {[%clk 00:03:17]} {[%emt 00:01:05]} 36. b7 {[%clk
00:05:40]} {[%emt 00:00:19]} Rd8 {[%clk 00:02:28]} {[%emt 00:01:18]} 37. Nxc3
{[%clk 00:04:29]} {[%emt 00:01:41]} d2 {[%clk 00:02:24]} {[%emt 00:00:34]} 38.
Rf1 {[%clk 00:04:01]} {[%emt 00:00:58]} Bxc3 {[%clk 00:02:13]} {[%emt
00:00:41]} 39. b8=Q {[%clk 00:03:59]} {[%emt 00:00:33]} Rxb8 {[%clk 00:02:40]}
{[%emt 00:00:02]} 40. Bxb8 {[%clk 00:04:24]} {[%emt 00:00:05]} Nc4 {[%clk
00:00:34]} {[%emt 00:02:35]} 41. Kf2 {[%clk 00:04:39]} {[%emt 00:00:16]} Bb2
{[%clk 00:12:44]} {[%emt 00:18:20]} 42. Ba7 {[%clk 00:32:08]} {[%emt 00:03:02]}
Nd6 {[%clk 00:10:07]} {[%emt 00:03:06]} 43. Ke2 {[%clk 00:30:43]} {[%emt
00:01:56]} Bc1 {[%clk 00:08:58]} {[%emt 00:01:39]} 44. Kd3 {[%clk 00:28:01]}
{[%emt 00:03:11]} f5 {[%clk 00:08:44]} {[%emt 00:00:44]} 45. Kc2 {[%clk
00:27:34]} {[%emt 00:00:58]} Kf7 {[%clk 00:06:26]} {[%emt 00:02:48]} 46. Rxc1
{[%clk 00:27:13]} {[%emt 00:00:51]} dxc1=Q+ {[%clk 00:06:11]} {[%emt 00:00:44]}
47. Kxc1 {[%clk 00:27:37]} {[%emt 00:00:07]} Ne4 {[%clk 00:06:24]} {[%emt
00:00:17]} 48. Kd1 {[%clk 00:27:31]} {[%emt 00:00:35]} Ke7 {[%clk 00:06:18]}
{[%emt 00:00:36]} 49. Bd4 {[%clk 00:27:42]} {[%emt 00:00:20]} g6 {[%clk
00:06:27]} {[%emt 00:00:20]} 50. Ke2 {[%clk 00:27:42]} {[%emt 00:00:31]} Kd6
{[%clk 00:06:45]} {[%emt 00:00:12]} 51. Be5+ {[%clk 00:26:52]} {[%emt
00:01:20]} Kd5 {[%clk 00:07:08]} {[%emt 00:00:07]} 52. h3 {[%clk 00:26:44]}
{[%emt 00:00:37]} h5 {[%clk 00:06:28]} {[%emt 00:01:10]} 53. Bd4 {[%clk
00:26:35]} {[%emt 00:00:39]} Kc4 {[%clk 00:05:32]} {[%emt 00:01:26]} 54. Be5
{[%clk 00:25:49]} {[%emt 00:01:16]} Nc5 {[%clk 00:05:07]} {[%emt 00:00:55]} 55.
Bd4 {[%clk 00:25:13]} {[%emt 00:01:06]} Nb3 {[%clk 00:05:28]} {[%emt 00:00:09]}
56. Bb2 {[%clk 00:25:06]} {[%emt 00:00:37]} Kd5 {[%clk 00:05:44]} {[%emt
00:00:15]} 57. Kf3 {[%clk 00:24:48]} {[%emt 00:00:48]} Nd2+ {[%clk 00:06:06]}
{[%emt 00:00:07]} 58. Ke2 {[%clk 00:25:08]} {[%emt 00:00:10]} Nc4 {[%emt
00:00:44]} 59. Bd4 {[%clk 00:25:06]} Ke4 {[%clk 00:06:49]} {[%emt 00:00:05]} 60.
Kf2 {[%clk 00:24:15]} {[%emt 00:01:21]} Kd3 {[%clk 00:06:14]} {[%emt 00:01:05]}
61. Kf3 {[%clk 00:23:44]} {[%emt 00:01:02]} Nd2 {[%clk 00:05:44]} {[%emt
00:00:59]} 62. Kf2 {[%clk 00:24:00]} {[%emt 00:00:14]} h4 {[%clk 00:03:03]}
{[%emt 00:03:11]} 63. Be5 {[%clk 00:23:37]} {[%emt 00:00:54]} Ne4+ {[%clk
00:02:56]} {[%emt 00:00:37]} 64. Kf3 {[%clk 00:23:45]} {[%emt 00:00:21]} Nd2
{[%clk 00:03:21]} {[%emt 00:00:05]} 65. Kf2 {[%clk 00:24:10]} {[%emt 00:00:05]}
Nc4 {[%clk 00:01:31]} {[%emt 00:02:20]} 66. Bd4 {[%clk 00:24:35]} {[%emt
00:00:06]} Nd6 {[%clk 00:01:30]} {[%emt 00:00:31]} 67. Kf3 {[%clk 00:24:36]}
{[%emt 00:00:29]} Ne4 {[%clk 00:01:24]} {[%emt 00:00:36]} 68. Bb6 {[%clk
00:24:09]} {[%emt 00:00:57]} Nd2 {[%clk 00:01:24]} {[%emt 00:00:30]} 69. Kf2
{[%clk 00:24:30]} {[%emt 00:00:07]} Ne4+ {[%clk 00:01:21]} {[%emt 00:00:34]}
1/2-1/2

[Event "NJSK 2026 Jeugd B"]
[Site "Helmond, Netherlands"]
[Date "2026.04.26"]
[Round "2.9"]
[White "Van Haaften, Jelle"]
[Black "Wierenga, Luuk"]
[Result "1/2-1/2"]
[TimeControl "90min/40moves + 30min + 30sec/move"]
[WhiteTitle "-"]
[BlackTitle "-"]
[WhiteFideId "1096281"]
[BlackFideId "1094874"]
[WhiteElo "1882"]
[BlackElo "1977"]

1. e4 {[%clk 01:30:57]} e5 {[%clk 01:30:51]} {[%emt 00:00:09]} 2. Nf3 {[%clk
01:31:22]} {[%emt 00:00:04]} Nf6 {[%clk 01:31:15]} {[%emt 00:00:07]} 3. Nxe5
{[%clk 01:31:34]} {[%emt 00:00:18]} d6 {[%clk 01:31:40]} {[%emt 00:00:05]} 4.
Nf3 {[%clk 01:31:57]} {[%emt 00:00:07]} Nxe4 {[%clk 01:32:05]} {[%emt
00:00:05]} 5. d4 {[%clk 01:32:20]} {[%emt 00:00:06]} d5 {[%clk 01:32:30]}
{[%emt 00:00:06]} 6. Bd3 {[%clk 01:32:45]} {[%emt 00:00:05]} Bd6 {[%clk
01:32:55]} {[%emt 00:00:05]} 7. O-O {[%clk 01:33:07]} {[%emt 00:00:08]} O-O
{[%clk 01:33:19]} {[%emt 00:00:04]} 8. c4 {[%clk 01:33:30]} {[%emt 00:00:09]}
c6 {[%clk 01:33:44]} {[%emt 00:00:04]} 9. Nc3 {[%clk 01:33:55]} {[%emt
00:00:06]} Nxc3 {[%clk 01:33:59]} {[%emt 00:00:15]} 10. bxc3 {[%clk 01:34:19]}
{[%emt 00:00:05]} dxc4 {[%clk 01:33:57]} {[%emt 00:00:32]} 11. Bxc4 {[%clk
01:34:42]} {[%emt 00:00:07]} Bg4 {[%clk 01:33:12]} {[%emt 00:01:16]} 12. h3
{[%clk 01:34:56]} {[%emt 00:00:15]} Bh5 {[%clk 01:33:11]} {[%emt 00:00:30]} 13.
g4 {[%clk 01:35:21]} {[%emt 00:00:05]} Bg6 {[%clk 01:33:30]} {[%emt 00:00:12]}
14. Ne5 {[%clk 01:35:29]} {[%emt 00:00:22]} Bxe5 {[%clk 01:15:25]} {[%emt
00:18:35]} 15. dxe5 {[%clk 01:34:16]} {[%emt 00:01:43]} Qa5 {[%clk 01:14:15]}
{[%emt 00:01:40]} 16. f4 {[%clk 01:30:47]} {[%emt 00:03:59]} Qxc3 {[%clk
01:05:33]} {[%emt 00:09:10]} 17. Qb3 {[%clk 01:30:43]} {[%emt 00:00:36]} Qxb3
{[%clk 01:04:49]} {[%emt 00:01:15]} 18. axb3 {[%clk 01:31:09]} {[%emt
00:00:02]} Be4 {[%clk 01:01:41]} {[%emt 00:03:38]} 19. Rd1 {[%clk 01:29:22]}
{[%emt 00:02:17]} Bd5 {[%clk 00:48:14]} {[%emt 00:13:57]} 20. Bxd5 {[%clk
01:27:43]} {[%emt 00:02:09]} cxd5 {[%clk 00:47:50]} {[%emt 00:00:55]} 21. Rxd5
{[%clk 01:18:33]} {[%emt 00:09:39]} Nc6 {[%clk 00:48:02]} {[%emt 00:00:19]} 22.
Be3 {[%clk 01:00:32]} {[%emt 00:18:30]} h6 {[%clk 00:38:53]} {[%emt 00:09:39]}
23. Rd6 {[%clk 00:51:50]} {[%emt 00:09:13]} Rfd8 {[%clk 00:35:48]} {[%emt
00:03:35]} 24. Rad1 {[%clk 00:51:17]} {[%emt 00:01:03]} b6 {[%clk 00:31:21]}
{[%emt 00:04:57]} 25. Rc1 {[%clk 00:37:31]} {[%emt 00:14:15]} Ne7 {[%clk
00:29:44]} {[%emt 00:02:07]} 26. Kf2 {[%clk 00:23:21]} {[%emt 00:14:40]} Nd5
{[%clk 00:24:45]} {[%emt 00:05:28]} 27. Ra1 {[%clk 00:20:49]} {[%emt 00:03:03]}
Rxd6 {[%clk 00:18:37]} {[%emt 00:06:39]} 28. exd6 {[%clk 00:21:17]} {[%emt
00:00:02]} Rd8 {[%clk 00:18:45]} {[%emt 00:00:21]} 29. Rxa7 {[%clk 00:21:34]}
{[%emt 00:00:13]} 1/2-1/2

[Event "NJSK 2026 Jeugd B"]
[Site "Helmond, Netherlands"]
[Date "2026.04.26"]
[Round "2.10"]
[White "Etienne, Ghilon"]
[Black "Yantur, Arda"]
[Result "1-0"]
[TimeControl "90min/40moves + 30min + 30sec/move"]
[WhiteTitle "-"]
[BlackTitle "-"]
[WhiteFideId "1084267"]
[BlackFideId "40102041"]
[WhiteElo "1976"]
[BlackElo "1750"]

1. Nf3 {[%clk 01:30:35]} {[%emt 00:00:23]} c6 {[%clk 01:29:16]} {[%emt
00:01:45]} 2. g3 {[%clk 01:30:47]} {[%emt 00:00:16]} Nf6 {[%clk 01:29:22]}
{[%emt 00:00:25]} 3. Bg2 {[%clk 01:31:01]} {[%emt 00:00:17]} g6 {[%clk
01:29:15]} {[%emt 00:00:37]} 4. O-O {[%clk 01:31:18]} {[%emt 00:00:12]} Bg7
{[%clk 01:29:43]} {[%emt 00:00:03]} 5. d3 {[%clk 01:31:22]} {[%emt 00:00:26]}
O-O {[%clk 01:28:25]} {[%emt 00:01:48]} 6. e4 {[%clk 01:31:37]} {[%emt
00:00:14]} d6 {[%clk 01:28:49]} {[%emt 00:00:07]} 7. Nc3 {[%clk 01:31:27]}
{[%emt 00:00:39]} e5 {[%clk 01:29:06]} {[%emt 00:00:14]} 8. Ne1 {[%clk
01:31:18]} {[%emt 00:00:38]} Ne8 {[%clk 01:28:25]} {[%emt 00:01:12]} 9. f4
{[%clk 01:30:35]} {[%emt 00:01:13]} f5 {[%clk 01:25:12]} {[%emt 00:03:43]} 10.
Nf3 {[%clk 01:28:50]} {[%emt 00:02:14]} Be6 {[%clk 01:18:30]} {[%emt 00:07:13]}
11. Qe2 {[%clk 01:28:04]} {[%emt 00:01:16]} Nd7 {[%clk 01:18:21]} {[%emt
00:00:40]} 12. Ng5 {[%clk 01:27:32]} {[%emt 00:01:01]} Bf7 {[%clk 01:18:26]}
{[%emt 00:00:25]} 13. fxe5 {[%clk 01:25:59]} {[%emt 00:02:03]} Bxe5 {[%clk
00:56:19]} {[%emt 00:22:37]} 14. exf5 {[%clk 01:25:44]} {[%emt 00:00:45]} gxf5
{[%clk 00:55:09]} {[%emt 00:01:40]} 15. Rf2 {[%emt 00:00:26]} f4 16. Rxf4
{[%clk 01:25:47]} Ng7 {[%clk 00:54:22]} {[%emt 00:01:18]} 17. Rxf7 {[%clk
01:21:09]} {[%emt 00:05:08]} Rxf7 {[%clk 00:54:50]} {[%emt 00:00:02]} 18. Nxf7
{[%clk 01:21:31]} {[%emt 00:00:08]} Kxf7 {[%clk 00:55:14]} {[%emt 00:00:06]} 19.
Be3 {[%clk 01:21:30]} {[%emt 00:00:30]} Kg8 {[%clk 00:53:46]} {[%emt 00:01:58]}
20. d4 {[%clk 01:17:56]} {[%emt 00:04:04]} Bf6 {[%clk 00:54:00]} {[%emt
00:00:16]} 21. Ne4 {[%clk 01:17:33]} {[%emt 00:00:53]} Be7 {[%clk 00:53:56]}
{[%emt 00:00:35]} 22. c3 {[%clk 01:15:59]} {[%emt 00:02:04]} d5 {[%clk
00:53:00]} {[%emt 00:01:26]} 23. Nd2 {[%clk 01:16:15]} {[%emt 00:00:13]} Qb6
{[%clk 00:52:25]} {[%emt 00:01:06]} 24. Bh6 {[%clk 01:14:59]} {[%emt 00:01:46]}
Bf8 {[%clk 00:42:10]} {[%emt 00:10:44]} 25. Bxg7 {[%clk 01:07:57]} {[%emt
00:07:32]} Kxg7 {[%clk 00:42:14]} {[%emt 00:00:26]} 26. Qg4+ {[%clk 01:08:07]}
{[%emt 00:00:20]} Kh8 {[%clk 00:42:37]} {[%emt 00:00:08]} 27. Qxd7 {[%clk
01:08:18]} {[%emt 00:00:18]} Qxb2 {[%clk 00:43:00]} {[%emt 00:00:07]} 28. Rd1
{[%clk 01:08:43]} {[%emt 00:00:05]} Qxc3 {[%clk 00:43:09]} {[%emt 00:00:22]} 29.
Nb3 {[%clk 01:08:12]} {[%emt 00:01:00]} Bg7 {[%clk 00:42:23]} {[%emt 00:01:16]}
30. Qe7 {[%clk 01:05:10]} {[%emt 00:03:32]} a5 {[%clk 00:41:41]} {[%emt
00:01:13]} 31. Qe1 {[%clk 01:05:28]} {[%emt 00:00:11]} Qxe1+ {[%clk 00:41:13]}
{[%emt 00:00:59]} 32. Rxe1 {[%clk 01:05:53]} {[%emt 00:00:05]} a4 {[%clk
00:41:39]} {[%emt 00:00:04]} 33. Nc1 {[%clk 01:04:06]} {[%emt 00:02:16]} Bxd4+
{[%clk 00:41:50]} {[%emt 00:00:19]} 34. Kh1 {[%clk 01:04:31]} {[%emt 00:00:05]}
Bc5 {[%clk 00:39:55]} {[%emt 00:02:25]} 35. Nd3 {[%clk 01:04:47]} {[%emt
00:00:14]} Bd6 {[%clk 00:39:26]} {[%emt 00:00:59]} 36. Re6 {[%clk 01:04:31]}
{[%emt 00:00:46]} Rd8 {[%clk 00:39:12]} {[%emt 00:00:44]} 37. Kg1 {[%clk
00:58:07]} {[%emt 00:06:55]} Kg7 {[%clk 00:38:19]} {[%emt 00:01:23]} 38. Kf2
{[%clk 00:57:33]} {[%emt 00:01:03]} b5 {[%clk 00:36:37]} {[%emt 00:02:13]} 39.
Ne5 {[%clk 00:54:11]} {[%emt 00:03:51]} b4 {[%clk 00:27:31]} {[%emt 00:09:36]}
40. Nxc6 {[%clk 00:52:01]} {[%emt 00:02:40]} Rf8+ {[%clk 00:27:13]} {[%emt
00:00:49]} 41. Ke1 {[%clk 00:52:05]} {[%emt 00:00:26]} b3 {[%clk 00:26:39]}
{[%emt 00:01:04]} 42. axb3 {[%clk 00:52:18]} {[%emt 00:00:16]} a3 {[%clk
00:08:04]} {[%emt 00:49:05]} 43. Re2 {[%clk 01:22:21]} {[%emt 00:00:27]} d4
{[%clk 00:07:27]} {[%emt 00:01:09]} 44. Ra2 {[%clk 01:17:05]} {[%emt 00:05:45]}
Re8+ {[%clk 00:07:18]} {[%emt 00:00:39]} 45. Kd2 {[%clk 01:17:03]} {[%emt
00:00:32]} Re6 {[%clk 00:02:31]} {[%emt 00:05:17]} 46. b4 {[%clk 01:14:35]}
{[%emt 00:02:59]} Rg6 {[%clk 00:01:40]} {[%emt 00:01:20]} 47. Rxa3 {[%clk
01:14:35]} {[%emt 00:00:31]} Bf4+ {[%clk 00:01:32]} {[%emt 00:00:38]} 48. Kc2
{[%clk 01:14:07]} {[%emt 00:00:57]} Be3 {[%clk 00:00:45]} {[%emt 00:01:16]} 49.
Ra7+ {[%clk 01:14:10]} {[%emt 00:00:28]} Kg8 {[%clk 00:00:31]} {[%emt
00:00:44]} 50. Ne7+ {[%clk 01:14:22]} {[%emt 00:00:17]} 1-0

[Event "NJSK 2026 Jeugd B"]
[Site "Helmond, Netherlands"]
[Date "2026.04.27"]
[Round "3.1"]
[White "Chua, Ethan"]
[Black "Kurt, Sascha"]
[Result "1-0"]
[TimeControl "90min/40moves + 30min + 30sec/move"]
[WhiteTitle "-"]
[BlackTitle "-"]
[WhiteFideId "1089250"]
[BlackFideId "1082647"]
[WhiteElo "2168"]
[BlackElo "2280"]

1. e4 {[%clk 01:30:57]} {[%emt 00:00:02]} c5 {[%clk 01:30:56]} {[%emt
00:00:05]} 2. Ne2 {[%clk 01:31:16]} {[%emt 00:00:11]} d6 {[%clk 01:31:13]}
{[%emt 00:00:13]} 3. g3 {[%clk 01:31:42]} {[%emt 00:00:04]} Nc6 {[%clk
01:29:09]} {[%emt 00:02:34]} 4. Bg2 {[%clk 01:32:02]} {[%emt 00:00:10]} g6
{[%clk 01:27:46]} {[%emt 00:01:53]} 5. c3 {[%clk 01:32:22]} {[%emt 00:00:10]}
Bg7 {[%clk 01:25:14]} {[%emt 00:03:02]} 6. d4 {[%clk 01:32:45]} {[%emt
00:00:07]} cxd4 {[%clk 01:24:42]} {[%emt 00:01:03]} 7. cxd4 {[%clk 01:33:01]}
{[%emt 00:00:13]} Bg4 {[%clk 01:17:45]} {[%emt 00:07:28]} 8. f3 {[%clk
01:33:16]} {[%emt 00:00:14]} Bd7 {[%clk 01:17:41]} {[%emt 00:00:32]} 9. O-O
{[%clk 01:32:33]} {[%emt 00:01:14]} Nf6 {[%clk 01:16:52]} {[%emt 00:01:20]} 10.
Nbc3 {[%clk 01:29:39]} {[%emt 00:03:24]} O-O {[%clk 01:14:40]} {[%emt
00:02:42]} 11. Be3 {[%clk 01:30:04]} {[%emt 00:00:05]} a6 {[%clk 01:09:03]}
{[%emt 00:06:08]} 12. Rc1 {[%clk 01:25:57]} {[%emt 00:04:36]} Rc8 {[%clk
01:08:55]} {[%emt 00:00:38]} 13. Qd2 {[%clk 01:22:05]} {[%emt 00:04:21]} b5
{[%clk 01:05:20]} {[%emt 00:04:06]} 14. b3 {[%clk 01:22:30]} {[%emt 00:00:05]}
e6 {[%clk 00:56:29]} {[%emt 00:09:14]} 15. h3 {[%clk 01:07:49]} {[%emt
00:15:18]} e5 {[%clk 00:48:45]} {[%emt 00:08:12]} 16. Kh2 {[%clk 01:06:52]}
{[%emt 00:01:27]} Re8 {[%clk 00:40:22]} {[%emt 00:08:55]} 17. Rfd1 {[%clk
00:49:27]} {[%emt 00:17:55]} b4 {[%clk 00:35:12]} {[%emt 00:05:41]} 18. Na4
{[%clk 00:48:56]} {[%emt 00:01:01]} exd4 {[%clk 00:33:24]} {[%emt 00:02:17]} 19.
Nxd4 {[%clk 00:49:09]} {[%emt 00:00:17]} Nxd4 {[%clk 00:29:18]} {[%emt
00:04:36]} 20. Bxd4 {[%clk 00:49:30]} {[%emt 00:00:09]} Rxc1 {[%clk 00:27:28]}
{[%emt 00:02:20]} 21. Rxc1 {[%clk 00:47:24]} {[%emt 00:02:36]} Bxa4 {[%clk
00:27:53]} {[%emt 00:00:05]} 22. bxa4 {[%clk 00:47:47]} {[%emt 00:00:08]} Qa5
{[%clk 00:27:53]} {[%emt 00:00:30]} 23. a3 {[%clk 00:34:34]} {[%emt 00:13:43]}
Qxa4 {[%clk 00:27:23]} {[%emt 00:01:00]} 24. axb4 {[%clk 00:34:22]} {[%emt
00:00:43]} h5 {[%clk 00:23:13]} {[%emt 00:04:39]} 25. h4 {[%clk 00:30:33]}
{[%emt 00:04:19]} Qd7 {[%clk 00:16:27]} {[%emt 00:07:17]} 26. Qb2 {[%clk
00:26:19]} {[%emt 00:04:43]} Qe7 {[%clk 00:15:15]} {[%emt 00:01:42]} 27. Rc6
{[%clk 00:25:07]} {[%emt 00:01:43]} Ra8 {[%clk 00:15:30]} {[%emt 00:00:15]} 28.
Bf1 {[%clk 00:25:12]} {[%emt 00:00:24]} a5 {[%clk 00:13:13]} {[%emt 00:02:49]}
29. b5 {[%clk 00:24:08]} {[%emt 00:01:32]} a4 {[%clk 00:13:30]} {[%emt
00:00:14]} 30. Ra6 {[%clk 00:23:31]} {[%emt 00:01:06]} Rc8 {[%clk 00:06:11]}
{[%emt 00:07:49]} 31. b6 {[%clk 00:20:26]} {[%emt 00:03:36]} Ng4+ 32. fxg4
{[%clk 00:20:08]} Qxe4 {[%clk 00:04:46]} {[%emt 00:00:02]} 33. b7 {[%clk
00:18:42]} {[%emt 00:01:56]} Rc2+ {[%clk 00:04:52]} {[%emt 00:00:25]} 34. Qxc2
{[%clk 00:19:06]} {[%emt 00:00:06]} Qxc2+ {[%clk 00:05:15]} {[%emt 00:00:06]}
35. Bg2 {[%clk 00:19:29]} {[%emt 00:00:07]} Bxd4 {[%clk 00:04:59]} {[%emt
00:00:45]} 36. b8=Q+ {[%clk 00:19:53]} {[%emt 00:00:08]} Kh7 {[%clk 00:05:21]}
{[%emt 00:00:07]} 37. Ra8 {[%clk 00:19:39]} {[%emt 00:00:44]} hxg4 {[%clk
00:05:02]} {[%emt 00:00:49]} 38. Qg8+ {[%clk 00:19:41]} {[%emt 00:00:28]} Kh6
{[%clk 00:05:29]} {[%emt 00:00:04]} 39. Qxf7 {[%clk 00:18:28]} {[%emt
00:01:53]} Be5 {[%clk 00:04:25]} {[%emt 00:01:24]} 40. Ra7 {[%clk 00:16:29]}
{[%emt 00:02:29]} Bxg3+ {[%clk 00:03:34]} {[%emt 00:01:20]} 41. Kxg3 {[%clk
00:16:53]} {[%emt 00:00:06]} Qc3+ {[%clk 00:03:54]} {[%emt 00:00:10]} 42. Kh2
{[%clk 00:15:37]} {[%emt 00:01:45]} Qe5+ {[%clk 00:03:53]} {[%emt 00:00:32]} 43.
Kg1 {[%clk 00:15:37]} {[%emt 00:00:29]} Qe1+ {[%clk 00:00:59]} {[%emt
00:03:26]} 44. Qf1 {[%clk 00:15:57]} {[%emt 00:00:09]} Qe3+ {[%clk 00:01:16]}
{[%emt 00:00:12]} 45. Qf2 {[%clk 00:16:22]} {[%emt 00:00:06]} Qc1+ {[%clk
00:01:33]} {[%emt 00:00:13]} 46. Kh2 {[%clk 00:16:36]} {[%emt 00:00:15]} 1-0